bitfinex/quotes_SOLUSD_20241024
["timestamp","ask_amount","ask_price","bid_price","bid_amount"]
[1729755377679,18.51932724,173.68,173.62,18.51932724]
[1729755377866,18.51932724,173.68,173.59,15.1728]
[1729755378071,18.51932724,173.68,173.62,18.51932724]
[1729755378277,18.51932724,173.68,173.63,18.51932724]
[1729755378577,18.51932724,173.68,173.6,0.12549]
[1729755378759,18.51932724,173.66,173.61,18.51932724]
[1729755379868,18.51932724,173.64,173.56,8.94617464]
[1729755380071,18.51932724,173.64,173.58,18.51932724]
[1729755382456,18.51932724,173.64,173.59,18.51932724]
[1729755383481,6.201,173.66,173.59,18.51932724]
[1729755383684,42.29621124,173.65,173.6,18.51932724]
[1729755389393,18.51932724,173.64,173.59,18.51932724]
[1729755389579,18.51932724,173.63,173.58,18.51932724]
[1729755390078,18.51932724,173.64,173.59,18.51932724]
[1729755391367,18.51932724,173.64,173.55,18.15460136]
[1729755391567,18.51932724,173.64,173.59,18.51932724]
[1729755392775,42.29621124,173.65,173.6,18.51932724]
[1729755393000,18.51932724,173.64,173.59,18.51932724]
[1729755393989,42.29621124,173.63,173.55,15.1728]
[1729755394295,18.51932724,173.62,173.56,18.51932724]
[1729755396497,18.51932724,173.62,173.57,18.51932724]
[1729755396689,18.51932724,173.62,173.51,15.1728]
[1729755396690,23.776884,173.62,173.58,18.51932724]
[1729755397370,23.776884,173.63,173.58,18.51932724]
[1729755397883,42.29621124,173.63,173.58,18.51932724]
[1729755398194,18.51932724,173.62,173.57,18.51932724]
[1729755405699,42.29621124,173.63,173.58,18.51932724]
[1729755408001,42.29621124,173.63,173.51,0.12549]
[1729755408002,24.81052724,173.6,173.51,0.12549]
[1729755408207,15.595,173.61,173.57,18.51932724]
[1729755408379,23.776884,173.61,173.57,18.51932724]
[1729755408896,42.29621124,173.61,173.56,18.51932724]
[1729755409398,23.776884,173.61,173.57,18.51932724]
[1729755409600,42.29621124,173.61,173.56,18.51932724]
[1729755409996,6.2912,173.64,173.59,18.51932724]
[1729755410198,6.2912,173.64,173.61,18.51932724]
[1729755410512,23.776884,173.63,173.59,18.51932724]
[1729755412290,23.776884,173.63,173.6,18.51932724]
[1729755414312,23.776884,173.63,173.59,18.51932724]
[1729755415214,23.776884,173.63,173.52,20.25098]
[1729755415415,23.776884,173.63,173.59,18.51932724]
[1729755419210,42.29621124,173.63,173.58,18.51932724]
[1729755420700,23.776884,173.63,173.59,18.51932724]
[1729755421805,23.776884,173.63,173.52,0.25098]
[1729755422005,23.776884,173.63,173.58,18.51932724]
[1729755422916,42.29621124,173.63,173.52,0.25098]
[1729755423216,42.29621124,173.63,173.58,18.51932724]
[1729755424417,42.29621124,173.63,173.52,0.25098]
[1729755424719,18.51932724,173.62,173.56,18.51932724]
[1729755425217,18.51932724,173.61,173.56,18.51932724]
[1729755425425,18.51932724,173.61,173.55,18.51932724]
[1729755425718,18.51932724,173.6,173.52,0.12549]
[1729755425927,29.536184,173.63,173.52,0.12549]
[1729755425928,18.51932724,173.61,173.55,18.51932724]
[1729755426093,18.51932724,173.61,173.56,18.51932724]
[1729755427322,18.51932724,173.61,173.51,16.0406]
[1729755427618,42.29621124,173.6,173.54,18.51932724]
[1729755427815,42.29621124,173.6,173.51,16.0406]
[1729755427997,42.29621124,173.6,173.54,18.51932724]
[1729755428192,42.29621124,173.6,173.55,18.51932724]
[1729755430820,42.29621124,173.6,173.54,18.51932724]
[1729755431607,42.29621124,173.6,173.55,18.51932724]
[1729755431804,23.776884,173.6,173.56,18.51932724]
[1729755438008,23.776884,173.61,173.57,18.51932724]
[1729755438207,42.29621124,173.61,173.56,18.51932724]
[1729755438509,23.776884,173.61,173.56,18.51932724]
[1729755438712,23.776884,173.61,173.58,18.51932724]
[1729755438918,23.776884,173.63,173.59,18.51932724]
[1729755441109,23.776884,173.63,173.51,16.0406]
[1729755441110,42.29621124,173.63,173.58,18.51932724]
[1729755442710,42.29621124,173.63,173.51,16.0406]
[1729755442930,42.29621124,173.63,173.58,18.51932724]
[1729755443934,23.776884,173.63,173.59,18.51932724]
[1729755444136,24.027864,173.68,173.62,18.51932724]
[1729755444426,42.42170124,173.68,173.63,18.51932724]
[1729755444629,42.42170124,173.68,173.64,9.25966362]
[1729755444630,5.7578,173.68,173.64,9.25966362]
[1729755444822,22.0231,173.69,173.65,18.51932724]
[1729755446340,23.776884,173.68,173.65,18.51932724]
[1729755447036,23.776884,173.68,173.6,74.07730896]
[1729755447037,23.776884,173.68,173.66,18.51932724]
[1729755451424,18.51932724,173.67,173.62,18.51932724]
[1729755451634,23.776884,173.68,173.64,18.51932724]
[1729755452441,29.534584,173.68,173.64,18.51932724]
[1729755456519,6.0295,173.69,173.66,18.51932724]
[1729755456818,20.0,173.72,173.68,18.51932724]
[1729755457242,38.51932724,173.72,173.67,18.51932724]
[1729755457538,18.51932724,173.71,173.66,18.51932724]
[1729755457848,23.776884,173.7,173.66,18.51932724]
[1729755458548,23.776884,173.7,173.68,18.51932724]
[1729755458726,23.902374,173.72,173.68,18.51932724]
[1729755459040,23.902374,173.72,173.63,15.9982]
[1729755459230,23.902374,173.72,173.68,18.51932724]
[1729755460255,22.0231,173.73,173.7,18.51932724]
[1729755460545,6.0295,173.73,173.7,18.51932724]
[1729755461236,6.0295,173.73,173.71,18.51932724]
[1729755461435,6.0295,173.73,173.7,18.51932724]
[1729755461630,23.776884,173.72,173.7,18.51932724]
[1729755462226,23.776884,173.72,173.71,18.51932724]
[1729755462442,34.69298151,173.77,173.71,18.51932724]
[1729755462747,34.69298151,173.77,173.74,18.51932724]
[1729755463345,40.44768151,173.77,173.73,18.51932724]
[1729755463541,58.96700875,173.77,173.71,18.51932724]
[1729755463745,18.51932724,173.75,173.7,18.51932724]
[1729755463944,40.44768151,173.77,173.72,18.51932724]
[1729755464149,23.902374,173.76,173.72,18.51932724]
[1729755464329,42.42170124,173.76,173.71,18.51932724]
[1729755464646,42.42170124,173.76,173.65,0.12549]
[1729755464855,23.776884,173.74,173.7,18.51932724]
[1729755465654,23.776884,173.74,173.64,0.25098]
[1729755465826,23.776884,173.74,173.7,18.51932724]
[1729755466431,23.776884,173.75,173.71,18.51932724]
[1729755467230,18.51932724,173.75,173.7,18.51932724]
[1729755467431,23.776884,173.74,173.7,18.51932724]
[1729755468258,23.776884,173.75,173.72,18.51932724]
[1729755468755,23.776884,173.76,173.74,18.51932724]
[1729755468959,21.7431,173.81,173.75,18.51932724]
[1729755469248,21.7431,173.81,173.7,74.07730896]
[1729755469249,27.4965,173.81,173.77,18.51932724]
[1729755469453,21.7431,173.81,173.77,18.51932724]
[1729755469635,6.0893,173.81,173.79,18.51932724]
[1729755470245,6.0893,173.81,173.78,18.51932724]
[1729755471749,23.776884,173.82,173.79,18.51932724]
[1729755471954,40.4392274,173.85,173.81,18.51932724]
[1729755472155,23.776884,173.84,173.81,18.51932724]
[1729755473159,23.776884,173.84,173.8,18.51932724]
[1729755476136,23.776884,173.84,173.79,18.51932724]
[1729755478897,42.29621124,173.84,173.79,18.51932724]
[1729755480357,23.776884,173.84,173.8,18.51932724]
[1729755480561,23.776884,173.84,173.81,18.51932724]
[1729755480862,23.776884,173.84,173.8,18.51932724]
[1729755483151,23.776884,173.84,173.79,18.51932724]
[1729755483458,23.776884,173.84,173.72,20.25098]
[1729755483657,23.776884,173.84,173.79,18.51932724]
[1729755487967,42.29621124,173.82,173.72,20.25098]
[1729755488173,42.29621124,173.82,173.76,18.51932724]
[1729755488471,18.51932724,173.79,173.7,19.54574697]
[1729755488765,18.51932724,173.79,173.74,18.51932724]
[1729755489148,18.51932724,173.78,173.73,18.51932724]
[1729755489345,23.776884,173.77,173.73,18.51932724]
[1729755489654,42.29621124,173.77,173.72,18.51932724]
[1729755489861,23.776884,173.77,173.73,18.51932724]
[1729755490870,23.776884,173.77,173.72,18.51932724]
[1729755491052,29.531584,173.77,173.73,18.51932724]
[1729755491252,42.29621124,173.77,173.71,18.51932724]
[1729755491451,18.51932724,173.75,173.7,18.51932724]
[1729755491970,18.51932724,173.75,173.66,15.8069]
[1729755491971,18.51932724,173.74,173.69,18.51932724]
[1729755492642,18.51932724,173.75,173.7,18.51932724]
[1729755493366,18.51932724,173.73,173.68,18.51932724]
[1729755493570,42.29621124,173.74,173.68,18.51932724]
[1729755494861,18.51932724,173.72,173.67,18.51932724]
[1729755495556,18.51932724,173.71,173.66,18.51932724]
[1729755495953,18.51932724,173.72,173.67,18.51932724]
[1729755496165,23.776884,173.71,173.68,18.51932724]
[1729755496383,23.776884,173.71,173.62,15.8069]
[1729755496384,18.51932724,173.75,173.7,18.51932724]
[1729755496670,23.776884,173.74,173.7,18.51932724]
[1729755497069,23.776884,173.76,173.72,18.51932724]
[1729755497255,42.29621124,173.76,173.71,18.51932724]
[1729755498286,23.776884,173.77,173.73,18.51932724]
[1729755498661,23.776884,173.77,173.72,18.51932724]
[1729755500064,23.776884,173.77,173.74,18.51932724]
[1729755500264,23.776884,173.78,173.74,18.51932724]
[1729755501352,42.29621124,173.78,173.73,18.51932724]
[1729755508563,42.29621124,173.78,173.68,15.8069]
[1729755508564,42.29621124,173.76,173.71,18.51932724]
[1729755508773,42.29621124,173.76,173.69,18.51932724]
[1729755508774,18.51932724,173.75,173.69,18.51932724]
[1729755509370,23.776884,173.76,173.69,18.51932724]
[1729755509371,18.51932724,173.74,173.69,18.51932724]
[1729755509891,18.51932724,173.75,173.69,18.51932724]
[1729755510078,18.51932724,173.75,173.7,18.51932724]
[1729755513975,42.29621124,173.76,173.71,18.51932724]
[1729755515282,18.51932724,173.74,173.65,2.92210565]
[1729755515584,18.51932724,173.74,173.69,18.51932724]
[1729755516995,18.51932724,173.75,173.7,18.51932724]
[1729755521193,18.51932724,173.72,173.64,18.73738706]
[1729755521400,18.51932724,173.71,173.66,18.51932724]
[1729755521604,18.51932724,173.7,173.65,18.51932724]
[1729755522902,18.51932724,173.71,173.66,18.51932724]
[1729755524981,48.83061124,173.73,173.68,18.51932724]
[1729755527293,18.51932724,173.75,173.7,18.51932724]
[1729755527473,18.51932724,173.76,173.71,18.51932724]
[1729755528794,18.51932724,173.72,173.67,18.51932724]
[1729755529614,23.776884,173.75,173.68,18.51932724]
[1729755529782,23.776884,173.73,173.69,18.51932724]
[1729755531186,25.05372724,173.77,173.72,18.51932724]
[1729755531892,6.5344,173.77,173.72,18.51932724]
[1729755532282,25.05372724,173.77,173.72,18.51932724]
[1729755532482,23.776884,173.76,173.72,18.51932724]
[1729755534604,23.776884,173.76,173.66,6.22155925]
[1729755534605,23.776884,173.76,173.73,18.51932724]
[1729755534905,6.5344,173.77,173.73,18.51932724]
[1729755535113,23.776884,173.78,173.74,18.51932724]
[1729755535704,42.29621124,173.78,173.73,18.51932724]
[1729755541419,18.51932724,173.77,173.72,18.51932724]
[1729755542205,23.776884,173.78,173.73,18.51932724]
[1729755542206,42.29621124,173.78,173.73,18.51932724]
[1729755550929,42.29621124,173.78,173.72,18.51932724]
[1729755550930,18.51932724,173.77,173.72,18.51932724]
[1729755551219,18.51932724,173.73,173.68,18.51932724]
[1729755553603,18.51932724,173.74,173.69,18.51932724]
[1729755554317,18.51932724,173.74,173.7,18.51932724]
[1729755554524,18.51932724,173.74,173.69,18.51932724]
[1729755561809,25.09892724,173.75,173.69,18.51932724]
[1729755562024,23.776884,173.74,173.7,18.51932724]
[1729755568410,28.9886,173.79,173.71,9.25966362]
[1729755568735,28.9886,173.79,173.72,9.25966362]
[1729755568736,18.51932724,173.78,173.72,9.25966362]
[1729755568956,18.51932724,173.78,173.73,18.51932724]
[1729755570027,18.51932724,173.78,173.73,9.25966362]
[1729755570236,18.51932724,173.75,173.68,20.0]
[1729755570414,18.51932724,173.73,173.68,38.51932724]
[1729755571113,18.51932724,173.74,173.69,18.51932724]
[1729755572029,18.51932724,173.75,173.7,18.51932724]
[1729755573331,23.2345,173.79,173.72,18.51932724]
[1729755573639,42.29621124,173.78,173.73,18.51932724]
[1729755573841,18.51932724,173.78,173.73,18.51932724]
[1729755574141,18.51932724,173.77,173.72,18.51932724]
[1729755574639,23.2345,173.79,173.74,18.51932724]
[1729755574820,41.75382724,173.79,173.74,18.51932724]
[1729755575233,23.2345,173.79,173.74,18.51932724]
[1729755575440,41.75382724,173.79,173.74,18.51932724]
[1729755576034,18.51932724,173.82,173.76,18.51932724]
[1729755576234,46.60947363,173.81,173.76,18.51932724]
[1729755576422,18.51932724,173.79,173.75,18.51932724]
[1729755577128,23.776884,173.81,173.7,89.85310896]
[1729755577129,18.51932724,173.77,173.71,20.0]
[1729755577335,18.51932724,173.77,173.72,18.51932724]
[1729755577716,18.51932724,173.77,173.65,0.2]
[1729755577717,325.07236926,173.73,173.39,28.31659457]
[1729755577939,20.0,173.76,173.07,18.51932724]
[1729755577940,24.027864,173.27,173.07,18.51932724]
[1729755578127,23.776884,173.15,173.07,0.1]
[1729755578445,13.776884,173.25,173.1,42.97351571]
[1729755578615,2.310517,173.23,173.17,0.1]
[1729755578816,20.0,173.4,173.21,0.1]
[1729755579010,10.10085159,173.46,173.21,0.1]
[1729755579011,9.25966362,173.31,173.25,18.51932724]
[1729755579239,9.25966362,173.27,173.21,0.1]
[1729755579424,18.51932724,173.24,173.19,0.1]
[1729755579618,20.0,173.31,173.19,0.1]
[1729755579832,4.26070861,173.3,173.17,0.1]
[1729755580036,18.51932724,173.28,173.21,18.51932724]
[1729755580342,70.36298854,173.23,173.17,46.68610454]
[1729755580548,23.776884,173.23,173.17,46.68610454]
[1729755580837,44.027864,173.31,173.21,0.1]
[1729755581026,44.027864,173.31,173.14,6.5387]
[1729755581027,44.027864,173.29,173.2,0.1]
[1729755581227,24.027864,173.27,173.19,0.1]
[1729755581430,4.24419489,173.26,173.19,0.1]
[1729755581636,20.12549,173.27,173.21,0.1]
[1729755581836,20.12549,173.27,173.19,0.1]
[1729755581837,23.776884,173.26,173.19,0.1]
[1729755582031,23.776884,173.26,173.21,46.58610454]
[1729755582922,0.12549,173.25,173.2,46.58610454]
[1729755583242,23.776884,173.24,173.19,46.58610454]
[1729755583447,0.12549,173.23,173.18,46.58610454]
[1729755583632,30.0,173.22,173.18,46.58610454]
[1729755583972,30.0,173.22,173.2,46.58610454]
[1729755584241,6.02338397,173.3,173.2,46.58610454]
[1729755584242,46.58610454,173.26,173.2,46.68610454]
[1729755584545,46.58610454,173.26,173.21,23.29233429]
[1729755584730,46.58610454,173.26,173.21,46.58610454]
[1729755585043,46.58610454,173.26,173.21,23.29377025]
[1729755585241,46.58610454,173.26,173.2,46.68610454]
[1729755585540,23.776884,173.25,173.2,46.68610454]
[1729755586125,46.58610454,173.22,173.18,0.1]
[1729755586322,46.58610454,173.22,173.17,0.1]
[1729755586529,70.36298854,173.23,173.18,0.1]
[1729755586727,70.36298854,173.23,173.18,46.58610454]
[1729755586927,23.776884,173.23,173.18,46.58610454]
[1729755587432,23.776884,173.23,173.18,46.68610454]
[1729755588238,46.58610454,173.24,173.19,0.1]
[1729755588933,70.48847854,173.23,173.17,46.68610454]
[1729755589135,46.58610454,173.22,173.17,46.68610454]
[1729755589332,46.58610454,173.22,173.17,0.1]
[1729755589533,70.48847854,173.23,173.17,46.68610454]
[1729755590135,70.48847854,173.23,173.17,46.58610454]
[1729755590457,46.58610454,173.21,173.15,46.58610454]
[1729755590754,46.58610454,173.21,173.14,6.5387]
[1729755590755,46.58610454,173.22,173.17,46.58610454]
[1729755590926,49.60306008,173.24,173.18,46.58610454]
[1729755591127,23.01695554,173.25,173.21,46.58610454]
[1729755591350,46.58610454,173.3,173.24,46.58610454]
[1729755591545,46.58610454,173.31,173.25,46.58610454]
[1729755591762,46.58610454,173.3,173.25,46.58610454]
[1729755592137,46.58610454,173.33,173.28,46.58610454]
[1729755592341,0.1,173.39,173.31,46.58610454]
[1729755592555,46.58610454,173.34,173.3,46.58610454]
[1729755592734,46.58610454,173.31,173.26,46.58610454]
[1729755592928,46.58610454,173.32,173.27,46.58610454]
[1729755593160,6.11912346,173.39,173.21,0.1]
[1729755593161,6.11912346,173.39,173.3,46.58610454]
[1729755593455,46.58610454,173.34,173.29,46.58610454]
[1729755594537,23.776884,173.34,173.31,46.58610454]
[1729755594731,23.776884,173.35,173.31,46.58610454]
[1729755595648,23.776884,173.35,173.3,46.58610454]
[1729755595849,70.36298854,173.35,173.3,46.58610454]
[1729755596235,70.36298854,173.35,173.29,46.58610454]
[1729755596432,23.776884,173.35,173.31,46.58610454]
[1729755596759,46.58610454,173.36,173.31,46.58610454]
[1729755596947,46.58610454,173.35,173.29,46.58610454]
[1729755598557,46.58610454,173.35,173.3,46.58610454]
[1729755598754,46.58610454,173.35,173.29,46.58610454]
[1729755598987,23.776884,173.35,173.3,46.58610454]
[1729755599451,70.36298854,173.35,173.3,46.58610454]
[1729755599653,70.36298854,173.35,173.29,46.58610454]
[1729755599854,46.58610454,173.36,173.3,46.58610454]
[1729755600354,29.075777,173.36,173.31,14.5378885]
[1729755600732,29.075777,173.36,173.3,14.5378885]
[1729755600733,29.075777,173.36,173.3,29.075777]
[1729755602647,23.776884,173.35,173.29,29.075777]
[1729755602858,23.776884,173.35,173.3,29.075777]
[1729755603164,23.776884,173.35,173.2,45.552677]
[1729755603165,29.075777,173.34,173.29,29.075777]
[1729755603549,52.852661,173.35,173.3,29.075777]
[1729755604354,29.201267,173.34,173.29,29.075777]
[1729755604669,52.852661,173.33,173.28,29.075777]
[1729755604874,23.776884,173.33,173.29,29.075777]
[1729755606872,23.776884,173.33,173.28,29.075777]
[1729755607058,52.852661,173.33,173.28,29.075777]
[1729755607870,23.776884,173.33,173.28,29.075777]
[1729755608476,23.776884,173.33,173.29,29.075777]
[1729755608989,23.776884,173.33,173.28,29.075777]
[1729755610167,0.12549,173.34,173.3,29.075777]
[1729755611469,0.12549,173.34,173.29,29.075777]
[1729755612055,23.776884,173.33,173.29,29.075777]
[1729755612551,23.902374,173.34,173.29,29.075777]
[1729755612752,23.776884,173.34,173.31,29.075777]
[1729755612953,23.776884,173.34,173.21,23.902374]
[1729755613270,23.776884,173.34,173.3,29.075777]
[1729755614277,23.776884,173.34,173.29,29.075777]
[1729755614461,52.852661,173.34,173.29,29.075777]
[1729755614777,29.075777,173.33,173.27,29.075777]
[1729755615274,52.852661,173.34,173.28,29.075777]
[1729755615877,23.776884,173.34,173.29,29.075777]
[1729755617278,23.776884,173.34,173.28,29.075777]
[1729755618672,52.852661,173.34,173.27,29.075777]
[1729755619594,52.852661,173.34,173.28,29.075777]
[1729755620087,23.776884,173.34,173.28,29.075777]
[1729755620580,23.776884,173.34,173.26,29.075777]
[1729755620581,0.12549,173.33,173.26,29.075777]
[1729755620783,0.12549,173.33,173.22,20.0]
[1729755620784,29.075777,173.32,173.25,29.075777]
[1729755621076,52.852661,173.31,173.26,29.075777]
[1729755621258,29.075777,173.3,173.25,29.075777]
[1729755621461,14.5378885,173.26,173.21,29.075777]
[1729755621862,14.5378885,173.25,173.2,45.452677]
[1729755622060,29.075777,173.25,173.2,45.452677]
[1729755622282,29.075777,173.26,173.21,29.075777]
[1729755622880,29.075777,173.24,173.19,29.075777]
[1729755623190,29.075777,173.23,173.18,29.075777]
[1729755625076,29.075777,173.21,173.16,14.5378885]
[1729755625269,29.075777,173.19,173.14,35.614477]
[1729755626073,49.075777,173.18,173.13,29.075777]
[1729755626271,49.075777,173.18,173.12,29.075777]
[1729755626471,29.075777,173.17,173.12,29.075777]
[1729755626789,29.075777,173.16,173.11,29.075777]
[1729755626987,20.0,173.18,173.14,29.075777]
[1729755627290,49.075777,173.18,173.13,29.075777]
[1729755627587,52.852661,173.17,173.11,29.075777]
[1729755627887,29.075777,173.16,173.11,29.075777]
[1729755628671,52.852661,173.17,173.11,29.075777]
[1729755628871,52.852661,173.17,173.12,29.075777]
[1729755629372,29.075777,173.16,173.11,29.075777]
[1729755629572,52.852661,173.17,173.12,29.075777]
[1729755629783,29.075777,173.16,173.11,29.075777]
[1729755629987,29.075777,173.16,173.1,29.075777]
[1729755630769,29.075777,173.15,173.1,29.075777]
[1729755631277,0.1,173.21,173.09,0.6071155]
[1729755631278,3.24,173.5,173.24,20.0]
[1729755631593,23.05221037,173.79,173.77,0.1]
[1729755631796,23.05221037,173.79,173.52,6.5465]
[1729755631797,2.90757321,173.8,173.66,0.1]
[1729755631975,0.1,173.75,173.66,0.1]
[1729755632164,0.1,173.73,173.63,0.1]
[1729755632367,0.1,173.71,173.6,0.1]
[1729755632566,0.1,173.7,173.49,0.1]
[1729755632763,0.1,173.7,173.5,0.1]
[1729755632764,8.91872524,173.7,173.5,0.1]
[1729755633000,0.1,173.72,173.55,0.2]
[1729755633167,46.37021058,173.7,173.61,46.37021058]
[1729755633489,46.37021058,173.72,173.63,46.37021058]
[1729755633675,46.37021058,173.72,173.64,51.63021058]
[1729755633880,46.37021058,173.72,173.64,5.26]
[1729755634081,46.37021058,173.72,173.65,2.30477744]
[1729755634281,0.1,173.81,173.68,46.37021058]
[1729755634490,46.37021058,173.74,173.66,46.37021058]
[1729755634785,46.37021058,173.74,173.68,5.26]
[1729755634991,46.37021058,173.76,173.68,51.63021058]
[1729755635165,46.37021058,173.76,173.69,2.3044412]
[1729755635364,46.37021058,174.0,173.68,51.63021058]
[1729755635365,15.253,173.9,173.71,46.37021058]
[1729755635571,46.37021058,173.81,173.73,46.37021058]
[1729755635779,46.37021058,173.81,173.73,51.62021058]
[1729755635979,0.7071155,173.86,173.73,51.62021058]
[1729755635980,46.37021058,173.8,173.73,51.62021058]
[1729755636182,46.37021058,173.8,173.73,46.37021058]
[1729755636397,46.37021058,173.85,173.78,46.37021058]
[1729755636696,46.37021058,173.84,173.77,46.37021058]
[1729755637074,46.37021058,173.83,173.76,46.37021058]
[1729755637389,46.37021058,173.82,173.75,46.37021058]
[1729755637795,46.37021058,173.82,173.7,46.57021058]
[1729755637796,0.6071155,173.86,173.78,46.37021058]
[1729755637978,46.37021058,173.85,173.78,46.37021058]
[1729755639087,46.37021058,173.85,173.77,46.37021058]
[1729755639492,46.37021058,173.84,173.77,46.37021058]
[1729755639696,46.37021058,173.84,173.78,2.46]
[1729755639873,46.37021058,173.85,173.78,2.46]
[1729755640683,46.37021058,173.79,173.78,2.46]
[1729755640987,46.37021058,173.8,173.78,2.46]
[1729755641189,20.0,173.82,173.78,2.46]
[1729755641491,20.0,173.82,173.77,46.37021058]
[1729755641697,66.37021058,173.82,173.76,46.37021058]
[1729755642482,66.37021058,173.82,173.75,46.37021058]
[1729755642682,66.37021058,173.82,173.76,46.37021058]
[1729755642994,66.37021058,173.82,173.7,46.47021058]
[1729755642995,20.25098,173.83,173.78,46.37021058]
[1729755643191,46.37021058,173.82,173.75,46.37021058]
[1729755643495,66.37021058,173.8,173.74,46.37021058]
[1729755643681,46.37021058,173.79,173.73,46.37021058]
[1729755645184,46.62119058,173.78,173.72,46.37021058]
[1729755645695,46.62119058,173.78,173.73,46.37021058]
[1729755645888,0.25098,173.78,173.73,46.37021058]
[1729755646297,0.25098,173.78,173.74,46.37021058]
[1729755646495,0.25098,173.79,173.74,46.37021058]
[1729755646694,0.25098,173.79,173.67,0.1]
[1729755646695,0.25098,173.79,173.73,46.37021058]
[1729755647087,0.25098,173.79,173.72,46.37021058]
[1729755648178,46.37021058,173.78,173.7,46.37021058]
[1729755648702,46.37021058,173.78,173.71,46.37021058]
[1729755650084,46.37021058,173.73,173.67,46.37021058]
[1729755650398,46.37021058,173.72,173.67,46.37021058]
[1729755650599,0.12549,173.72,173.68,46.37021058]
[1729755650904,0.25098,173.72,173.68,46.37021058]
[1729755651200,20.0,173.75,173.7,46.37021058]
[1729755651405,20.0,173.75,173.61,2.46]
[1729755651406,20.0,173.76,173.72,46.37021058]
[1729755651777,20.0,173.79,173.74,46.37021058]
[1729755651978,66.37021058,173.8,173.75,46.37021058]
[1729755652482,66.37021058,173.8,173.74,46.37021058]
[1729755652483,46.37021058,173.79,173.74,46.37021058]
[1729755652702,66.37021058,173.78,173.73,46.37021058]
[1729755652907,46.37021058,173.77,173.72,46.37021058]
[1729755653503,46.37021058,173.74,173.69,46.37021058]
[1729755653701,46.37021058,173.73,173.68,46.37021058]
[1729755654022,46.37021058,173.74,173.69,46.37021058]
[1729755654689,46.37021058,173.75,173.69,46.37021058]
[1729755655207,46.37021058,173.75,173.7,46.37021058]
[1729755655410,46.37021058,173.77,173.71,46.37021058]
[1729755655611,46.37021058,173.77,173.72,23.18510529]
[1729755655788,46.37021058,173.77,173.71,46.37021058]
[1729755656409,46.37021058,173.76,173.7,46.37021058]
[1729755657191,46.37021058,173.75,173.7,46.37021058]
[1729755658591,46.37021058,173.75,173.69,46.37021058]
[1729755659091,46.37021058,173.77,173.71,46.37021058]
[1729755659495,46.37021058,173.76,173.71,46.37021058]
[1729755659913,46.37021058,173.76,173.7,46.37021058]
[1729755660417,46.37021058,173.8,173.73,46.37021058]
[1729755660713,46.37021058,173.79,173.74,46.37021058]
[1729755660898,23.18510529,173.79,173.75,23.18510529]
[1729755661104,46.37021058,173.81,173.76,46.37021058]
[1729755661913,46.37021058,173.83,173.78,46.37021058]
[1729755662592,46.37021058,173.82,173.77,46.37021058]
[1729755662799,46.37021058,173.81,173.76,46.37021058]
[1729755663009,46.37021058,173.78,173.73,48.1011867]
[1729755663215,46.37021058,173.81,173.76,46.37021058]
[1729755663799,46.37021058,173.82,173.77,46.37021058]
[1729755665326,46.26120856,173.82,173.77,46.37021058]
[1729755667315,46.37021058,173.83,173.78,46.37021058]
[1729755667700,46.37021058,173.81,173.76,46.37021058]
[1729755668015,46.37021058,173.81,173.77,1.61297003]
[1729755669008,46.37021058,173.81,173.76,46.37021058]
[1729755669412,46.37021058,173.78,173.73,46.37021058]
[1729755669607,46.37021058,173.8,173.75,46.37021058]
[1729755671023,46.37021058,173.82,173.77,46.37021058]
[1729755673926,46.37021058,173.82,173.77,49.17021058]
[1729755674229,46.37021058,173.82,173.77,2.8]
[1729755675219,46.37021058,173.81,173.77,2.8]
[1729755675425,46.37021058,173.82,173.77,2.8]
[1729755676728,46.37021058,173.81,173.75,46.37021058]
[1729755677229,46.37021058,173.81,173.76,46.37021058]
[1729755677934,5.7524,173.84,173.76,46.37021058]
[1729755677935,46.37021058,173.82,173.76,46.37021058]
[1729755678235,46.37021058,173.84,173.78,46.37021058]
[1729755678411,66.37021058,173.83,173.78,46.37021058]
[1729755678833,66.37021058,173.83,173.77,46.37021058]
[1729755679711,46.37021058,173.81,173.78,5.25]
[1729755679915,25.7528,173.83,173.78,5.25]
[1729755679916,46.37021058,173.79,173.78,5.25]
[1729755680429,46.37021058,173.79,173.74,46.37021058]
[1729755680636,46.37021058,173.8,173.75,46.37021058]
[1729755680828,46.37021058,173.82,173.77,46.37021058]
[1729755681550,66.37021058,173.83,173.78,46.37021058]
[1729755681832,20.0,173.83,173.79,46.37021058]
[1729755682009,66.37021058,173.83,173.78,46.37021058]
[1729755682431,46.37021058,173.84,173.79,46.37021058]
[1729755682635,46.37021058,173.85,173.8,46.37021058]